bitfinex-derivatives/quotes_SOLF0:USTF0_20251219
["timestamp","ask_amount","ask_price","bid_price","bid_amount"]
[1766132739472,0.05696333,124.29,124.25,5.401e-05]
[1766132740361,0.05696333,124.29,124.26,0.05810122]
[1766132744871,4.26696333,124.29,124.23,4.28]
[1766132745071,4.21,124.29,124.23,4.28]
[1766132745863,0.0584939,124.27,124.25,0.04457248]
[1766132748767,51.75,124.31,124.25,4.32457248]
[1766132749574,4.21,124.31,124.25,4.32457248]
[1766132749769,0.05794785,124.29,124.25,4.32457248]
[1766132756280,5.81947441,124.32,124.25,4.32457248]
[1766132756477,10.02947441,124.35,124.26,4.28]
[1766132756676,4.21,124.35,124.26,4.28]
[1766132756874,4.21,124.35,124.27,4.28]
[1766132757378,4.21,124.35,124.3,4.33069403]
[1766132757577,3.78221007,124.35,124.3,4.33069403]
[1766132758383,0.06063386,124.34,124.3,4.33069403]
[1766132759882,0.00063386,124.34,124.3,4.33069403]
[1766132762887,10.03223773,124.42,124.32,4.28]
[1766132763181,10.03223773,124.42,124.31,5.82858547]
[1766132763182,4.21,124.42,124.33,4.28]
[1766132763988,4.21,124.42,124.37,5.0]
[1766132764876,0.05838527,124.41,124.37,5.0]
[1766132766288,5.79375759,124.45,124.37,5.0]
[1766132766483,11.07858547,124.44,124.37,5.0]
[1766132766686,5.25,124.43,124.37,5.0]
[1766132767293,0.05632138,124.41,124.39,0.05236178]
[1766132767694,0.05632138,124.41,124.35,4.88]
[1766132767992,0.05632138,124.41,124.29,120.22734797]
[1766132767993,3.72565203,124.38,124.33,4.88]
[1766132768487,5.25,124.4,124.33,4.88]
[1766132768698,3.78585049,124.38,124.35,0.05360684]
[1766132770787,0.06019846,124.38,124.35,0.05360684]
[1766132772590,3.72565203,124.37,124.32,4.88]
[1766132773094,3.72565203,124.37,124.29,47.52]
[1766132773095,3.72565203,124.35,124.3,4.88]
[1766132773392,71.65,124.4,124.27,4.88]
[1766132773393,3.72565203,124.33,124.27,4.88]
[1766132773896,0.05195662,124.31,124.29,0.0606494]
[1766132774188,0.00195662,124.31,124.29,4.9406494]
[1766132774391,3.72565203,124.35,124.29,4.9406494]
[1766132776697,0.05086408,124.33,124.29,4.9406494]
[1766132777091,0.00086408,124.33,124.29,4.9406494]
[1766132777998,0.00086408,124.33,124.29,12.1860494]
[1766132778198,0.00086408,124.33,124.3,4.88]
[1766132779591,0.00086408,124.33,124.31,4.88]
[1766132787007,0.00086408,124.33,124.31,12.1242]
[1766132787209,0.00086408,124.33,124.32,4.88]
[1766132788309,0.00086408,124.33,124.3,4.88]
[1766132801109,0.00086408,124.33,124.31,6.18]
[1766132810722,0.00086408,124.33,124.31,13.4244]
[1766132811111,0.00086408,124.33,124.32,6.18]
[1766132813125,0.00086408,124.33,124.31,7.51994797]
[1766132813318,0.00086408,124.33,124.31,13.69994797]
[1766132815627,0.00086408,124.33,124.31,6.18]
[1766132817823,0.00086408,124.33,124.3,13.69994797]
[1766132820719,0.00086408,124.33,124.3,6.18]
[1766132821629,0.00086408,124.33,124.3,13.69994797]
[1766132821827,0.00086408,124.33,124.31,6.18]
[1766132822012,0.00086408,124.33,124.31,13.69994797]
[1766132822220,0.00086408,124.33,124.32,6.18]
[1766132822828,0.00086408,124.33,124.31,7.51994797]
[1766132823017,0.00086408,124.33,124.31,13.69994797]
[1766132823416,5.76,124.47,124.39,1.37]
[1766132823728,5.76,124.44,124.38,48.89]
[1766132823932,5.76,124.44,124.38,52.61565203]
[1766132824223,6.79,124.43,124.36,5.16565203]
[1766132824428,0.06002483,124.41,124.38,0.05155554]
[1766132827335,8.61002483,124.41,124.35,47.52]
[1766132827634,8.61002483,124.41,124.33,125.73764192]
[1766132827635,7.01002483,124.41,124.33,125.73764192]
[1766132827837,6.95,124.41,124.33,125.73764192]
[1766132828030,6.95,124.41,124.33,7.2433]
[1766132828328,6.95,124.4,124.32,49.14]
[1766132828635,7.00873656,124.38,124.32,1.62]
[1766132829333,7.00873656,124.38,124.31,125.75234192]
[1766132829520,7.00873656,124.38,124.33,0.05173415]
[1766132834827,0.05873656,124.38,124.33,6.25387607]
[1766132835238,6.95,124.4,124.35,5.82214192]
[1766132835739,119.8165,124.44,124.35,5.99214192]
[1766132835740,6.95,124.43,124.35,5.99214192]
[1766132836438,0.05898847,124.4,124.38,0.05825248]
[1766132837036,6.95,124.43,124.38,0.05825248]
[1766132838035,7.0073381,124.42,124.38,0.05825248]
[1766132841548,7.0073381,124.42,124.35,0.17]
[1766132841744,7.0073381,124.42,124.33,5.82214192]
[1766132841945,6.95,124.42,124.33,5.82214192]
[1766132842245,6.95,124.41,124.33,5.82214192]
[1766132842634,0.05203088,124.38,124.33,5.82214192]
[1766132843747,0.05203088,124.38,124.34,0.06131356]
[1766132844950,7.00203088,124.38,124.34,0.06131356]
[1766132847845,7.00203088,124.38,124.3,13.06704192]
[1766132848051,6.95,124.38,124.3,13.06704192]
[1766132848247,6.95,124.38,124.3,7.2449]
[1766132848955,0.05890959,124.35,124.33,0.05779289]
[1766132849151,0.05942923,124.35,124.33,0.05779289]
[1766132849962,7.00942923,124.35,124.3,7.2449]
[1766132850762,7.00942923,124.35,124.31,0.06028532]
[1766132856057,7.00942923,124.35,124.31,0.00028532]
[1766132856360,7.00942923,124.35,124.27,1.39969834]
[1766132856551,6.95,124.35,124.27,1.39969834]
[1766132857156,0.06185838,124.32,124.3,0.06017983]
[1766132857350,0.06117226,124.32,124.3,0.06017983]
[1766132863459,4.09117226,124.32,124.26,7.2473]
[1766132864567,4.09117226,124.32,124.28,0.05798504]
[1766132868863,0.06117226,124.32,124.28,0.05798504]
[1766132871767,0.06117226,124.32,124.28,7.30418504]
[1766132878777,4.09117226,124.32,124.28,7.30418504]
[1766132878971,0.06117226,124.32,124.28,7.30418504]
[1766132882280,4.09117226,124.32,124.28,0.05798504]
[1766132884875,4.09117226,124.32,124.21,7.50651117]
[1766132884876,3.36,124.31,124.21,7.50651117]
[1766132885079,9.18214192,124.29,124.22,3.22]
[1766132885384,3.36,124.29,124.22,3.22]
[1766132885779,0.05692086,124.27,124.24,0.04192561]
[1766132885988,3.48,124.32,124.24,3.45192561]
[1766132886178,3.48,124.32,124.24,3.41]
[1766132886984,0.06128895,124.29,124.27,0.05682511]
[1766132908508,3.54128895,124.29,124.23,8.64931789]
[1766132908801,3.54128895,124.29,124.23,3.41]
[1766132909710,3.54128895,124.29,124.25,0.04202136]
[1766132913406,3.48,124.28,124.2,10.6607]
[1766132913608,3.48,124.27,124.2,10.6607]
[1766132913795,3.48,124.27,124.21,3.41]
[1766132914397,0.05260406,124.25,124.21,3.41]
[1766132914994,3.53260406,124.25,124.2,7.2507]
[1766132915203,3.53260406,124.25,124.19,3.41]
[1766132915700,3.37,124.24,124.18,1.4008252]
[1766132915903,0.05478893,124.22,124.17,3.37]
[1766132916208,0.05478893,124.22,124.18,3.37]
[1766132920904,3.42478893,124.22,124.16,50.91]
[1766132921113,3.37,124.2,124.14,3.37]
[1766132921308,0.05365071,124.18,124.14,3.37]
[1766132922601,3.42365071,124.18,124.12,4.77155863]
[1766132922799,3.42365071,124.18,124.1,61.91811028]
[1766132923007,0.05148713,124.15,124.1,59.58818446]
[1766132923410,3.42148713,124.15,124.08,10.6278]
[1766132924007,3.42148713,124.15,124.08,12.02989508]
[1766132926513,3.73171028,124.14,124.07,47.56]
[1766132926711,3.37,124.11,124.04,3.37]
[1766132926912,0.05818591,124.09,124.04,3.37]
[1766132927115,3.42818591,124.09,124.03,1.40260368]
[1766132927316,7.10171028,124.08,123.99,3.37]
[1766132927523,0.06031184,124.05,123.99,3.37]
[1766132927720,0.06031184,124.05,124.0,3.37]
[1766132929311,0.00031184,124.05,124.02,3.37]
[1766132929826,0.00031184,124.05,124.03,3.37]
[1766132930029,3.73171028,124.13,124.05,3.37]
[1766132930225,3.37,124.14,124.05,3.37]
[1766132930423,3.37,124.13,124.05,3.37]
[1766132930927,0.05604651,124.1,124.08,0.05328716]
[1766132931333,3.42604651,124.1,124.03,10.6305]
[1766132931628,3.42604651,124.1,124.03,3.37]
[1766132931931,7.15775679,124.1,124.03,3.37]
[1766132932328,0.05604651,124.1,124.05,3.37]
[1766132932522,3.37,124.14,124.05,3.37]
[1766132932716,3.37,124.14,124.06,7.10171028]
[1766132933026,3.37,124.14,124.07,3.37]
[1766132933533,0.05750429,124.12,124.09,0.05373741]
[1766132935535,3.42750429,124.12,124.05,50.97]
[1766132937738,3.37,124.11,124.05,47.6]
[1766132938033,3.42240499,124.09,124.03,3.37]
[1766132938535,3.37,124.07,124.0,50.97]
[1766132938737,0.05635827,124.05,124.01,3.37]
[1766132939826,3.37,124.09,124.02,3.37]
[1766132940027,3.73171028,124.1,124.02,3.37]
[1766132940422,3.37,124.11,124.02,3.37]
[1766132940627,7.10171028,124.11,124.02,3.37]
[1766132940837,0.05556726,124.08,124.05,0.0528722]
[1766132944231,3.25556726,124.08,124.02,3.37]
[1766132944542,3.25556726,124.08,124.0,7.18171028]
[1766132944543,0.05556726,124.08,124.0,7.18171028]
[1766132944735,3.2,124.09,124.01,3.45]
[1766132945241,0.05871895,124.06,124.01,3.45]
[1766132950440,3.29871895,124.06,123.99,3.36]
[1766132950844,6.97171028,124.05,123.99,3.36]
[1766132951050,3.29238935,124.03,123.97,3.36]
[1766132954942,3.29238935,124.03,123.95,3.36]
[1766132955239,0.05540433,124.0,123.95,3.36]
[1766132955838,0.05540433,124.0,123.94,3.36]
[1766132955839,3.29540433,124.0,123.94,3.36]
[1766132957245,3.24,123.99,123.91,4.7638768]
[1766132957436,0.00309505,123.96,123.92,3.36]
[1766132957636,3.24,124.03,123.95,3.36]
[1766132958550,3.24,124.03,123.95,10.6254]
[1766132958739,0.05229686,124.0,123.98,0.059429]
[1766132959048,0.00229686,124.0,123.98,0.059429]
[1766132960148,0.00229686,124.0,123.98,3.419429]
[1766132964146,0.00229686,124.0,123.98,0.059429]
[1766132966245,0.00229686,124.0,123.93,3.36]
[1766132967247,3.24229686,124.0,123.95,0.0564859]
[1766132969540,0.00229686,124.0,123.95,3.4164859]
[1766132969744,0.00229686,124.0,123.96,3.36]
[1766132970538,0.00229686,124.0,123.97,3.36]
[1766132971040,3.24,124.08,123.99,7.2629]
[1766132971241,3.24,124.08,124.0,3.36]
[1766132972046,0.06129405,124.05,124.03,0.05643193]
[1766132972649,0.06129405,124.05,124.0,3.36]
[1766132975960,0.06129405,124.05,123.99,3.52]
[1766132979364,3.52129405,124.05,123.99,3.52]
[1766132980364,0.06129405,124.05,124.0,3.52]
[1766132982962,3.52129405,124.05,123.98,3.52]
[1766132983162,0.05337799,124.03,123.98,3.52]
[1766132984067,3.51337799,124.03,123.97,47.64]
[1766132984366,3.51337799,124.03,123.97,51.16]
[1766132986072,0.05337799,124.03,123.98,3.52]
[1766132991973,0.05337799,124.03,123.94,3.52]
[1766132991974,3.46,124.01,123.94,3.52]
[1766132992271,5.85714657,124.02,123.96,3.57478053]
[1766132992476,137.0839,124.05,123.96,3.57478053]
[1766132992477,3.46,124.05,123.96,3.57478053]
[1766132992668,3.46,124.05,123.97,3.52]
[1766132993469,0.05593593,124.02,124.0,0.0557281]
[1766132995375,0.05593593,124.02,123.97,3.52]
[1766132995673,3.46,124.01,123.94,3.52]
[1766132995863,3.46,124.03,123.94,3.52]
[1766132996581,0.05453122,124.0,123.94,11.01160601]
[1766132996776,0.05453122,124.0,123.95,3.52]
[1766133000781,0.00453122,124.0,123.95,3.52]
[1766133001677,0.00453122,124.0,123.96,0.05403204]
[1766133002688,0.00453122,124.0,123.96,3.57403204]
[1766133007287,0.00453122,124.0,123.98,3.23]
[1766133009189,3.31,124.06,123.98,3.23]
[1766133010088,0.00482684,124.03,124.01,0.05564864]
[1766133010577,3.31,124.09,124.01,3.28564864]
[1766133010777,3.31,124.09,124.01,3.23]
[1766133011492,0.05399781,124.06,124.04,0.05617349]
[1766133012383,0.00399781,124.06,124.04,0.05617349]
[1766133026096,7.05622691,124.1,124.04,3.28617349]
[1766133027102,0.05904529,124.08,124.04,3.28617349]
[1766133028308,3.74622691,124.11,124.04,3.28617349]
[1766133028504,3.74622691,124.11,124.05,3.23]
[1766133029103,7.05622691,124.12,124.06,3.23]
[1766133029407,0.05154537,124.1,124.08,0.05444408]
[1766133031312,0.05154537,124.1,124.06,3.23]
[1766133031313,7.10777228,124.1,124.04,3.23]
[1766133031514,3.31,124.1,124.04,3.23]
[1766133031714,7.05622691,124.1,124.04,3.23]
[1766133032310,0.05664399,124.08,124.06,0.05287501]
[1766133032619,3.8028709,124.08,124.02,3.23]
[1766133032806,3.74622691,124.08,124.02,3.23]
[1766133033414,0.05189337,124.06,124.04,0.06157886]
[1766133036615,3.48,124.12,124.05,3.31]
[1766133037010,3.74622691,124.11,124.05,3.31]
[1766133037316,7.22622691,124.11,124.05,3.31]
[1766133037512,0.05494812,124.09,124.07,0.05938589]
[1766133041226,3.53494812,124.09,124.03,10.5708]
[1766133041417,3.53494812,124.09,124.03,3.31]
[1766133042331,3.53494812,124.09,124.05,0.06018259]
[1766133042627,3.48,124.14,124.07,3.31]
[1766133043225,3.48,124.14,124.1,3.74622691]
[1766133043625,3.54087577,124.13,124.07,3.31]
[1766133043918,3.54087577,124.13,124.08,3.74622691]
[1766133044833,3.54087577,124.13,124.09,0.06088823]
[1766133045325,3.54087577,124.13,124.09,0.00088823]
[1766133045715,3.48,124.11,124.06,3.74622691]
[1766133046622,3.48,124.11,124.07,0.05025574]
[1766133046822,3.53725132,124.1,124.07,0.00025574]
[1766133051137,3.53725132,124.1,124.04,3.74622691]
[1766133052634,3.53725132,124.1,124.04,7.05622691]
[1766133052827,3.53725132,124.1,124.06,3.74622691]
[1766133053026,3.53725132,124.1,124.04,3.31]
[1766133053234,3.53725132,124.1,124.05,3.74622691]
[1766133054522,0.05725132,124.1,124.07,3.74622691]
[1766133055022,47.62,124.13,124.07,7.05622691]
[1766133055434,51.1,124.13,124.07,7.05622691]
[1766133055621,3.48,124.13,124.09,3.74622691]
[1766133055821,47.62,124.14,124.09,3.74622691]
[1766133056021,0.05339891,124.13,124.1,0.05203718]
[1766133058833,3.53339891,124.13,124.07,3.31]
[1766133059033,3.53339891,124.13,124.08,3.74622691]
[1766133059529,10.78879891,124.13,124.08,3.74622691]
[1766133060533,10.78879891,124.13,124.1,3.74622691]
[1766133060721,10.78879891,124.13,124.07,3.31]
[1766133061034,10.78879891,124.13,124.1,2.691e-05]
[1766133061435,10.78879891,124.13,124.07,3.31]
[1766133061628,10.78879891,124.13,124.1,2.691e-05]
[1766133061826,3.48,124.15,124.1,3.31002691]
[1766133062031,47.62,124.16,124.12,3.74622691]
[1766133062530,51.1,124.16,124.1,3.31]
[1766133062730,3.48,124.15,124.11,2.691e-05]
[1766133062938,0.0580767,124.14,124.11,2.691e-05]
[1766133063138,0.0580767,124.14,124.12,0.05861305]
[1766133064038,3.5780767,124.14,124.1,3.74622691]
[1766133064423,3.5780767,124.14,124.09,3.74622691]
[1766133064631,10.8328767,124.14,124.09,3.74622691]
[1766133066540,10.8328767,124.14,124.08,3.31]
[1766133066839,10.8328767,124.14,124.09,3.74622691]
[1766133067436,10.6553,124.13,124.06,3.24]
[1766133067642,0.05190379,124.11,124.07,3.74622691]
[1766133068643,0.05190379,124.11,124.07,6.98622691]
[1766133069039,0.05190379,124.11,124.07,3.24]
[1766133069237,0.05190379,124.11,124.07,6.98622691]
[1766133070144,3.4,124.09,124.04,2.63e-05]
[1766133070341,0.05511517,124.08,124.02,6.98622691]
[1766133070845,10.659,124.07,124.0,3.74622691]
[1766133071141,0.05665039,124.05,123.99,6.98622691]
[1766133071342,10.71695039,124.05,123.95,9.96908156]
[1766133071645,0.05634776,124.01,123.98,3.74622691]
[1766133073148,3.4,124.04,123.98,7.04150233]
[1766133073349,3.4,124.04,123.98,3.29527542]
[1766133074243,0.05295256,124.02,123.98,3.29527542]
[1766133075947,0.05295256,124.02,123.98,0.05527542]
[1766133076131,3.45295256,124.02,123.98,0.05527542]
[1766133076438,3.45295256,124.02,123.95,3.24]
[1766133079148,3.4,124.01,123.91,4.6438768]
[1766133079446,0.05472386,123.97,123.92,3.24]
[1766133081147,3.45472386,123.97,123.9,3.24]
[1766133081347,47.64,123.99,123.92,3.24]
[1766133081648,3.4,124.0,123.92,3.24]
[1766133082250,0.05318128,123.97,123.95,0.05491962]
[1766133083055,7.2618,124.02,123.95,3.29491962]
[1766133083056,3.4,124.02,123.95,3.29491962]
[1766133083954,0.05615642,124.0,123.95,3.29491962]
[1766133087155,51.04,124.04,123.95,3.29491962]
[1766133087357,51.04,124.04,123.95,3.24]
[1766133087653,3.4,124.03,123.95,3.24]
[1766133088359,3.4,124.03,123.98,0.06148242]
[1766133089356,0.06115983,124.02,123.98,0.06148242]
[1766133090356,3.46115983,124.02,123.94,3.24]
[1766133090558,3.4,124.02,123.94,3.24]
[1766133091451,0.06184928,123.99,123.97,0.05890146]
[1766133097968,3.34,124.04,123.97,3.37890146]
[1766133098169,50.98,124.04,123.97,3.32]
[1766133098366,3.34,124.04,123.97,3.32]
[1766133098966,0.0598689,124.02,123.99,0.05086539]
[1766133099470,3.34,124.05,123.99,3.37086539]
[1766133099672,3.34,124.05,123.99,0.05086539]
[1766133100174,3.34,124.02,123.93,3.32]
[1766133100672,3.34,124.0,123.92,47.64]
[1766133100974,0.05349237,123.97,123.95,0.05601671]
[1766133101275,0.05349237,123.97,123.91,3.32]
[1766133101866,3.39349237,123.97,123.89,4.72407505]
[1766133102061,3.34,123.97,123.92,0.05445905]
[1766133102265,0.0550507,123.94,123.87,3.32]
[1766133102468,3.3950507,123.94,123.87,3.32]
[1766133103368,3.3950507,123.94,123.89,0.05799808]
[1766133103564,0.0550507,123.94,123.89,0.05799808]
[1766133103866,0.0550507,123.94,123.89,3.37799808]
[1766133106878,3.34,123.98,123.89,3.37799808]
[1766133107174,3.34,123.98,123.89,3.32]
[1766133107970,3.34,123.98,123.92,0.05924657]
[1766133108370,3.34,123.98,123.92,3.37924657]
[1766133108971,0.05733849,123.96,123.92,3.37924657]
[1766133112874,0.05733849,123.96,123.92,0.05924657]
[1766133118381,0.05733849,123.96,123.92,10.64654657]
[1766133119781,0.05733849,123.96,123.92,3.37924657]
[1766133119983,0.05733849,123.96,123.92,0.05924657]
[1766133120388,3.39733849,123.96,123.92,0.05924657]
[1766133121479,0.05733849,123.96,123.92,0.05924657]
[1766133125094,0.05733849,123.96,123.92,7.32644657]
[1766133126883,9.37388118,124.0,123.93,3.49]
[1766133127089,3.51,123.99,123.93,3.49]
[1766133128086,0.0583126,123.97,123.95,0.05525286]
[1766133128883,0.0583126,123.97,123.93,7.2665]
[1766133129388,3.5683126,123.97,123.91,10.7578]
[1766133129596,9.43219378,123.97,123.89,3.49]
[1766133129790,0.05308771,123.94,123.92,0.05123133]
[1766133130398,3.56308771,123.94,123.92,0.00123133]
[1766133130697,3.56308771,123.94,123.85,11.01910388]
[1766133130878,3.51,123.94,123.85,11.01910388]
[1766133131085,3.51,123.94,123.86,3.49]
[1766133131589,0.05944766,123.91,123.89,0.05403492]
[1766133134999,0.05944766,123.91,123.89,0.00403492]
[1766133136098,3.51,123.9,123.84,3.49]
[1766133136283,3.51,123.92,123.84,3.49]
[1766133136489,3.51,123.97,123.88,3.49]
[1766133136795,7.26577365,123.97,123.89,3.49]
[1766133137095,0.05523947,123.94,123.92,0.05480482]
[1766133140392,3.75577365,123.97,123.92,3.54480482]
[1766133140597,7.26577365,123.99,123.92,3.54480482]
[1766133140899,7.26577365,123.99,123.92,3.49]
[1766133141199,3.51,123.99,123.92,10.7574]
[1766133141395,0.05324585,123.97,123.94,0.05735628]
[1766133142394,54.94577365,124.02,123.94,3.54735628]
[1766133142599,54.94577365,124.02,123.94,3.49]
[1766133142799,3.51,124.01,123.94,3.49]
[1766133143300,0.05667455,123.99,123.96,0.05413667]
[1766133149994,3.51,124.04,123.96,3.54413667]
[1766133150202,3.51,124.04,123.96,3.49]
[1766133151107,0.05902034,124.01,123.99,0.05851941]
[1766133154298,0.05902034,124.01,123.94,3.49]
[1766133154808,3.56902034,124.01,123.94,3.49]
[1766133155306,3.56902034,124.01,123.96,0.05539114]
[1766133156906,24.2,124.05,123.96,116.37169114]
[1766133157213,3.21,124.07,124.0,3.31]
[1766133157508,3.21,124.09,124.01,3.31]
[1766133157909,3.21,124.09,124.01,10.5718]
[1766133158104,0.00195131,124.06,124.04,3.3633924]
[1766133158310,112.8211,124.18,124.06,3.31]
[1766133158311,3.21,124.14,124.06,3.31]
[1766133158613,3.21,124.14,124.07,3.31]
[1766133159308,0.05816828,124.12,124.09,0.05186372]
[1766133159517,3.26816828,124.12,124.04,10.5702]
[1766133159709,3.21,124.12,124.04,3.31]
[1766133160810,0.0598158,124.09,124.07,0.05116221]
[1766133161012,10.04721698,124.14,124.07,0.05116221]
[1766133161217,13.25721698,124.14,124.07,0.05116221]
[1766133161417,3.21,124.14,124.07,0.05116221]
[1766133162011,0.05503404,124.12,124.07,0.05116221]
[1766133162214,0.05503404,124.12,124.07,3.36116221]
[1766133162615,24.98836568,124.4,124.07,3.36116221]
[1766133162616,3.21,124.17,124.09,3.31]
[1766133163608,0.06127609,124.14,124.12,0.05776465]
[1766133165019,0.06127609,124.14,124.06,10.5691]
[1766133165206,3.21,124.15,124.07,3.31]
[1766133166126,0.05794216,124.12,124.1,0.05425157]
[1766133167521,3.21,124.19,124.1,3.36425157]
[1766133167717,3.21,124.19,124.1,3.31]
[1766133167920,3.21,124.19,124.11,3.31]
[1766133168121,50.83,124.22,124.11,3.31]
[1766133168322,3.21,124.21,124.11,3.31]
[1766133168615,0.05337404,124.17,124.11,3.31]
[1766133169720,0.05337404,124.17,124.13,0.05813422]
[1766133172921,3.26337404,124.17,124.08,10.5679]
[1766133173117,10.4631,124.17,124.08,3.31]
[1766133173322,3.21,124.16,124.08,3.31]
[1766133174022,0.05651981,124.13,124.11,0.05448997]
[1766133174227,0.05651981,124.13,124.07,47.62]
[1766133174421,3.26651981,124.13,124.05,3.31]
[1766133174621,3.21,124.13,124.05,3.31]
[1766133174817,3.21,124.13,124.02,3.31]
[1766133175024,3.21,124.12,124.03,3.31]
[1766133175216,0.05943935,124.09,124.06,0.05687129]
[1766133176729,3.21,124.14,124.06,3.36687129]
[1766133176915,3.21,124.14,124.06,3.31]
[1766133177716,3.21,124.14,124.03,112.9429]
[1766133177717,3.26288531,124.11,124.09,0.00093802]
[1766133178226,0.05288531,124.11,124.09,0.00093802]
[1766133181426,0.00288531,124.11,124.09,0.00093802]
[1766133181629,3.21,124.17,124.09,3.31093802]
[1766133181926,3.21,124.17,124.09,3.31]
[1766133182628,0.05893367,124.14,124.12,0.05160841]
[1766133182927,3.21,124.2,124.12,3.36160841]
[1766133183231,3.21,124.2,124.12,3.31]
[1766133183931,0.0518658,124.17,124.15,0.0548911]
[1766133184715,0.0518658,124.17,124.15,0.0048911]
[1766133185135,3.33,124.23,124.15,0.0048911]
[1766133185337,3.33,124.23,124.14,3.46]
[1766133185821,3.33,124.23,124.14,123.5632]
[1766133186022,3.33,124.23,124.17,0.05175241]
[1766133186023,0.05586144,124.2,124.17,0.05175241]
[1766133188850,47.6,124.26,124.17,3.51175241]
[1766133189032,47.6,124.26,124.17,3.46]
[1766133189531,3.41,124.26,124.19,3.46]
[1766133189724,0.06058941,124.24,124.21,0.051638]
[1766133189919,0.06058941,124.24,124.21,0.05750724]
[1766133195735,3.41,124.27,124.21,0.05750724]
[1766133196537,0.05790261,124.25,124.21,0.05750724]
[1766133199335,27.61,124.3,124.21,3.51750724]
[1766133199536,3.41,124.29,124.21,3.46]
[1766133200441,0.05458081,124.26,124.24,0.0580013]
[1766133200635,3.41,124.29,124.24,0.0580013]
[1766133201438,3.41,124.32,124.24,0.0580013]
[1766133201736,0.00306792,124.29,124.27,0.05629331]
[1766133201937,3.41,124.32,124.27,0.05629331]
[1766133202238,3.41,124.36,124.27,0.05629331]
[1766133202537,3.41,124.36,124.26,3.46]
[1766133202746,3.41,124.36,124.26,10.7072]
[1766133202941,3.41,124.36,124.27,3.44]
[1766133203242,0.05951786,124.32,124.3,0.05447986]
[1766133203543,3.41,124.4,124.3,116.13817986]
[1766133203860,3.41,124.4,124.33,3.38]
[1766133204144,3.41,124.45,124.37,3.38]
[1766133204342,0.06105185,124.42,124.4,0.06104876]
[1766133204740,3.41,124.48,124.4,3.38104876]
[1766133204944,3.41,124.48,124.4,3.32]
[1766133205337,3.41,124.48,124.38,47.56]
[1766133205537,3.41,124.48,124.4,3.32]
[1766133205852,0.03553882,124.45,124.43,0.00112922]
[1766133208238,3.41,124.48,124.43,0.00112922]
[1766133209236,0.05,124.47,124.43,0.00112922]
[1766133209543,3.46,124.47,124.37,7.2411]
[1766133209744,3.41,124.47,124.4,3.37]
[1766133209952,3.41,124.5,124.4,3.37]
[1766133210746,0.05112922,124.46,124.44,0.05175754]
[1766133211647,0.05112922,124.46,124.4,3.37]
[1766133212845,0.05112922,124.46,124.42,0.05767129]
[1766133214150,3.46112922,124.46,124.37,3.42]
[1766133214341,3.41,124.46,124.37,3.42]
[1766133215235,0.05679716,124.43,124.4,0.05998568]
[1766133215441,3.33679716,124.43,124.36,47.54]
[1766133215642,3.33679716,124.43,124.34,3.4]
[1766133215837,3.28,124.43,124.34,3.4]
[1766133216547,0.05731767,124.4,124.37,0.05127723]
[1766133216942,3.28,124.46,124.37,3.45127723]
[1766133217142,3.28,124.51,124.4,3.4]
[1766133217342,3.28,124.5,124.4,3.4]
[1766133218053,0.05325265,124.46,124.44,0.05981073]
[1766133218345,0.05325265,124.46,124.4,3.4]
[1766133218346,0.05325265,124.46,124.37,50.9]
[1766133218653,3.28,124.48,124.37,50.9]
[1766133218858,3.28,124.48,124.38,3.4]
[1766133219354,0.05967507,124.44,124.42,0.05073196]
[1766133221354,0.05967507,124.44,124.42,0.00073196]
[1766133222249,3.28,124.49,124.42,3.40073196]
[1766133223355,0.05956924,124.47,124.42,0.00073196]
[1766133224147,3.33956924,124.47,124.42,0.00073196]
[1766133225462,0.05956924,124.47,124.42,0.00073196]
[1766133227855,3.33956924,124.47,124.42,0.00073196]
[1766133228058,3.33956924,124.47,124.37,3.4]
[1766133228059,3.28,124.46,124.37,3.4]